[Event "Titled Tuesday Blitz August 22 Late 2023"]
[White "D`Arruda, Ricardo D."]
[Black "Girel, Joseph"]
[WhiteFideId "100692"]
[BlackFideId "36033561"]
[WhiteElo "2541"]
[BlackElo "2820"]
[Result "0-1"]
[Round "2"]
[TimeControl "180+1"]
[Date "2023.08.22"]
[WhiteClock "0:00:15"]
[BlackClock "0:00:11"]
[Board "55"]

1. d4 {[%clk 0:02:57]}  g6 {[%clk 0:02:46]} 2. e4 {[%clk 0:02:56]}  Bg7 {[%clk 0:02:46]} 3. Nc3 {[%clk 0:02:56]}  c5 {[%clk 0:02:46]} 4. Nf3 {[%clk 0:02:55]}  cxd4 {[%clk 0:02:44]} 5. Nxd4 {[%clk 0:02:56]}  Nc6 {[%clk 0:02:44]} 6. Be3 {[%clk 0:02:56]}  Nf6 {[%clk 0:02:43]} 7. Be2 {[%clk 0:02:48]}  O-O {[%clk 0:02:42]} 8. Qd2 {[%clk 0:02:46]}  d6 {[%clk 0:02:37]} 9. h3 {[%clk 0:02:42]}  Bd7 {[%clk 0:02:35]} 10. O-O {[%clk 0:02:41]}  Rc8 {[%clk 0:02:36]} 11. Nb3 {[%clk 0:02:32]}  a6 {[%clk 0:02:31]} 12. f4 {[%clk 0:02:31]}  Na5 {[%clk 0:02:24]} 13. Nxa5 {[%clk 0:02:30]}  Qxa5 {[%clk 0:02:24]} 14. Bf3 {[%clk 0:02:25]}  Bc6 {[%clk 0:02:15]} 15. Nd5 {[%clk 0:02:08]}  Qd8 {[%clk 0:02:11]} 16. Nxf6+ {[%clk 0:02:06]}  Bxf6 {[%clk 0:02:12]} 17. Bd4 {[%clk 0:02:04]}  Bxd4+ {[%clk 0:02:08]} 18. Qxd4 {[%clk 0:02:05]}  e5 {[%clk 0:02:08]} 19. fxe5 {[%clk 0:01:51]}  dxe5 {[%clk 0:02:08]} 20. Qe3 {[%clk 0:01:48]}  Qe7 {[%clk 0:02:01]} 21. c3 {[%clk 0:01:46]}  Bd7 {[%clk 0:01:55]} 22. Rad1 {[%clk 0:01:43]}  Be6 {[%clk 0:01:54]} 23. a3 {[%clk 0:01:41]}  Rfd8 {[%clk 0:01:44]} 24. Rxd8+ {[%clk 0:01:39]}  Rxd8 {[%clk 0:01:45]} 25. Rd1 {[%clk 0:01:39]}  Rxd1+ {[%clk 0:01:44]} 26. Bxd1 {[%clk 0:01:40]}  h5 {[%clk 0:01:44]} 27. Be2 {[%clk 0:01:35]}  h4 {[%clk 0:01:43]} 28. Kh2 {[%clk 0:01:34]}  Kg7 {[%clk 0:01:43]} 29. Qb6 {[%clk 0:01:30]}  Qg5 {[%clk 0:01:35]} 30. Qc5 {[%clk 0:01:24]}  Qf4+ {[%clk 0:01:34]} 31. Kh1 {[%clk 0:01:21]}  Qxe4 {[%clk 0:01:33]} 32. Bf3 {[%clk 0:01:19]}  Qe1+ {[%clk 0:01:33]} 33. Kh2 {[%clk 0:01:18]}  Qg3+ {[%clk 0:01:25]} 34. Kh1 {[%clk 0:01:18]}  Bxh3 {[%clk 0:01:24]} 35. Bxb7 {[%clk 0:01:18]}  Bf5 {[%clk 0:01:21]} 36. Qd5 {[%clk 0:00:51]}  h3 {[%clk 0:01:13]} 37. gxh3 {[%clk 0:00:50]}  Qxh3+ {[%clk 0:01:12]} 38. Kg1 {[%clk 0:00:50]}  Qg3+ {[%clk 0:01:12]} 39. Qg2 {[%clk 0:00:45]}  Qe3+ {[%clk 0:01:12]} 40. Qf2 {[%clk 0:00:44]}  Qc1+ {[%clk 0:01:12]} 41. Kh2 {[%clk 0:00:44]}  e4 {[%clk 0:01:10]} 42. Bxe4 {[%clk 0:00:40]}  Bxe4 {[%clk 0:01:09]} 43. Qd4+ {[%clk 0:00:39]}  Kg8 {[%clk 0:01:09]} 44. Qxe4 {[%clk 0:00:40]}  Qxb2+ {[%clk 0:01:08]} 45. Kg1 {[%clk 0:00:40]}  Qxa3 {[%clk 0:01:04]} 46. Qe8+ {[%clk 0:00:38]}  Qf8 {[%clk 0:01:01]} 47. Qc6 {[%clk 0:00:38]}  a5 {[%clk 0:00:58]} 48. c4 {[%clk 0:00:39]}  a4 {[%clk 0:00:57]} 49. Qxa4 {[%clk 0:00:38]}  Qc5+ {[%clk 0:00:57]} 50. Kg2 {[%clk 0:00:36]}  Kf8 {[%clk 0:00:52]} 51. Qa8+ {[%clk 0:00:35]}  Ke7 {[%clk 0:00:51]} 52. Qb7+ {[%clk 0:00:33]}  Ke6 {[%clk 0:00:51]} 53. Qe4+ {[%clk 0:00:33]}  Qe5 {[%clk 0:00:47]} 54. Qc6+ {[%clk 0:00:33]}  Kf5 {[%clk 0:00:46]} 55. c5 {[%clk 0:00:32]}  Qe2+ {[%clk 0:00:43]} 56. Kg1 {[%clk 0:00:32]}  Qe3+ {[%clk 0:00:37]} 57. Kg2 {[%clk 0:00:31]}  Kg4 {[%clk 0:00:29]} 58. Qd7+ {[%clk 0:00:30]}  f5 {[%clk 0:00:29]} 59. Qd1+ {[%clk 0:00:29]}  Kf4 {[%clk 0:00:26]} 60. Qf1+ {[%clk 0:00:26]}  Ke5 {[%clk 0:00:26]} 61. Qc4 {[%clk 0:00:25]}  Qd2+ {[%clk 0:00:08]} 62. Kf1 {[%clk 0:00:21]}  Qd1+ {[%clk 0:00:09]} 63. Kf2 {[%clk 0:00:21]}  Qd2+ {[%clk 0:00:09]} 64. Kf1 {[%clk 0:00:21]}  f4 {[%clk 0:00:09]} 65. c6 {[%clk 0:00:21]}  f3 {[%clk 0:00:10]} 66. c7 {[%clk 0:00:16]}  Qg2+ {[%clk 0:00:09]} 67. Ke1 {[%clk 0:00:17]}  f2+ {[%clk 0:00:10]} 68. Kd1 {[%clk 0:00:17]}  f1=Q+ {[%clk 0:00:11]} 69. Qxf1 {[%clk 0:00:17]}  Qxf1+ {[%clk 0:00:11]} 70. Kc2 {[%clk 0:00:15]}  Qc4+ {[%clk 0:00:11]} 0-1


[Site "https://www.chess.com"]

[Event "Titled Tuesday Blitz August 22 Late 2023"]
[White "subham777"]
[Black "ProphetReborn"]
[WhiteElo "2534"]
[BlackElo "2801"]
[Result "0-1"]
[Round "2"]
[TimeControl "180+1"]
[Date "2023.08.22"]
[WhiteClock "0:00:01"]
[BlackClock "0:01:22"]
[Board "58"]

1. e4 {[%clk 0:03:00]}  c5 {[%clk 0:02:59]} 2. Nf3 {[%clk 0:02:54]}  Nc6 {[%clk 0:02:59]} 3. Bb5 {[%clk 0:02:52]}  e6 {[%clk 0:02:59]} 4. O-O {[%clk 0:02:52]}  Nge7 {[%clk 0:02:59]} 5. c3 {[%clk 0:02:51]}  a6 {[%clk 0:02:58]} 6. Ba4 {[%clk 0:02:51]}  b5 {[%clk 0:02:57]} 7. Bc2 {[%clk 0:02:51]}  Bb7 {[%clk 0:02:58]} 8. d4 {[%clk 0:02:51]}  cxd4 {[%clk 0:02:58]} 9. Nxd4 {[%clk 0:02:49]}  Rc8 {[%clk 0:02:55]} 10. a4 {[%clk 0:02:48]}  b4 {[%clk 0:02:55]} 11. Be3 {[%clk 0:02:37]}  Ng6 {[%clk 0:02:51]} 12. f4 {[%clk 0:02:32]}  Be7 {[%clk 0:02:43]} 13. Nxc6 {[%clk 0:02:08]}  Bxc6 {[%clk 0:02:41]} 14. cxb4 {[%clk 0:01:59]}  Bxb4 {[%clk 0:02:37]} 15. f5 {[%clk 0:01:59]}  exf5 {[%clk 0:02:02]} 16. exf5 {[%clk 0:01:51]}  Ne5 {[%clk 0:02:02]} 17. Qd4 {[%clk 0:01:28]}  Qa5 {[%clk 0:02:01]} 18. f6 {[%clk 0:01:19]}  Bxg2 {[%clk 0:02:00]} 19. fxg7 {[%clk 0:00:41]}  Rg8 {[%clk 0:01:57]} 20. Kxg2 {[%clk 0:00:39]}  Rxc2+ {[%clk 0:01:53]} 21. Kh1 {[%clk 0:00:39]}  Rxg7 {[%clk 0:01:46]} 22. Bf4 {[%clk 0:00:21]}  f6 {[%clk 0:01:34]} 23. Qe4 {[%clk 0:00:11]}  Qc5 {[%clk 0:01:25]} 24. Bxe5 {[%clk 0:00:08]}  Qxe5 {[%clk 0:01:24]} 25. Qf3 {[%clk 0:00:01]}  Rg1+ {[%clk 0:01:22]} 0-1


[Site "https://www.chess.com"]

[Event "Titled Tuesday Blitz August 22 Late 2023"]
[White "Gorovets, Andrey"]
[Black "Keleberda, Tymur"]
[WhiteFideId "13504037"]
[BlackFideId "14174294"]
[WhiteElo "2799"]
[BlackElo "2533"]
[Result "1-0"]
[Round "2"]
[TimeControl "180+1"]
[Date "2023.08.22"]
[WhiteClock "0:00:07"]
[BlackClock "0:00:00"]
[Board "59"]

1. d4 {[%clk 0:02:14]}  Nf6 {[%clk 0:02:53]} 2. c4 {[%clk 0:02:14]}  e6 {[%clk 0:02:53]} 3. Nf3 {[%clk 0:02:14]}  b6 {[%clk 0:02:53]} 4. g3 {[%clk 0:02:14]}  Bb7 {[%clk 0:02:52]} 5. Bg2 {[%clk 0:02:14]}  Be7 {[%clk 0:02:53]} 6. O-O {[%clk 0:02:14]}  O-O {[%clk 0:02:52]} 7. Re1 {[%clk 0:02:14]}  Na6 {[%clk 0:02:52]} 8. Bf4 {[%clk 0:02:09]}  c5 {[%clk 0:02:51]} 9. d5 {[%clk 0:02:03]}  exd5 {[%clk 0:02:46]} 10. Nh4 {[%clk 0:01:25]}  Nh5 {[%clk 0:02:26]} 11. Nf5 {[%clk 0:01:25]}  Nxf4 {[%clk 0:02:26]} 12. gxf4 {[%clk 0:01:25]}  Bf6 {[%clk 0:02:20]} 13. Qd2 {[%clk 0:01:24]}  d6 {[%clk 0:02:12]} 14. Nc3 {[%clk 0:01:16]}  Qd7 {[%clk 0:02:10]} 15. Nxd5 {[%clk 0:01:03]}  Bxd5 {[%clk 0:01:41]} 16. Qxd5 {[%clk 0:01:04]}  Nb4 {[%clk 0:01:39]} 17. Qe4 {[%clk 0:01:01]}  Bxb2 {[%clk 0:01:21]} 18. Rad1 {[%clk 0:00:54]}  Bc3 {[%clk 0:01:13]} 19. Rxd6 {[%clk 0:00:50]}  Qxd6 {[%clk 0:01:11]} 20. Nxd6 {[%clk 0:00:49]}  Bxe1 {[%clk 0:01:11]} 21. Qb1 {[%clk 0:00:27]}  Bc3 {[%clk 0:00:56]} 22. Bxa8 {[%clk 0:00:26]}  Rxa8 {[%clk 0:00:54]} 23. Qe4 {[%clk 0:00:25]}  Rf8 {[%clk 0:00:47]} 24. a3 {[%clk 0:00:25]}  Na6 {[%clk 0:00:42]} 25. Qb7 {[%clk 0:00:25]}  Nb8 {[%clk 0:00:41]} 26. Nxf7 {[%clk 0:00:25]}  Rxf7 {[%clk 0:00:39]} 27. Qxb8+ {[%clk 0:00:24]}  Rf8 {[%clk 0:00:39]} 28. Qd6 {[%clk 0:00:23]}  g6 {[%clk 0:00:29]} 29. e3 {[%clk 0:00:21]}  Rf7 {[%clk 0:00:26]} 30. Kg2 {[%clk 0:00:20]}  Kg7 {[%clk 0:00:26]} 31. a4 {[%clk 0:00:20]}  Bf6 {[%clk 0:00:24]} 32. h3 {[%clk 0:00:20]}  Bc3 {[%clk 0:00:23]} 33. Qd5 {[%clk 0:00:20]}  h6 {[%clk 0:00:15]} 34. Kg3 {[%clk 0:00:20]}  Bf6 {[%clk 0:00:15]} 35. Qe6 {[%clk 0:00:18]}  Bc3 {[%clk 0:00:14]} 36. Qd5 {[%clk 0:00:17]}  h5 {[%clk 0:00:12]} 37. Kf3 {[%clk 0:00:17]}  Kf6 {[%clk 0:00:11]} 38. Ke2 {[%clk 0:00:17]}  Kg7 {[%clk 0:00:11]} 39. Kd3 {[%clk 0:00:16]}  Bb2 {[%clk 0:00:10]} 40. a5 {[%clk 0:00:16]}  bxa5 {[%clk 0:00:02]} 41. Qxc5 {[%clk 0:00:16]}  a4 {[%clk 0:00:03]} 42. Kc2 {[%clk 0:00:15]}  a3 {[%clk 0:00:03]} 43. Kb3 {[%clk 0:00:14]}  Rb7+ {[%clk 0:00:02]} 44. Ka2 {[%clk 0:00:15]}  Rd7 {[%clk 0:00:03]} 45. Kb3 {[%clk 0:00:11]}  Rd2 {[%clk 0:00:03]} 46. Qe7+ {[%clk 0:00:11]}  Kh6 {[%clk 0:00:03]} 47. Qg5+ {[%clk 0:00:10]}  Kh7 {[%clk 0:00:02]} 48. f5 {[%clk 0:00:11]}  gxf5 {[%clk 0:00:02]} 49. Qxf5+ {[%clk 0:00:10]}  Kg8 {[%clk 0:00:01]} 50. Qg6+ {[%clk 0:00:10]}  Kf8 {[%clk 0:00:01]} 51. Qf5+ {[%clk 0:00:09]}  Ke7 {[%clk 0:00:01]} 52. Qe4+ {[%clk 0:00:10]}  Kf7 {[%clk 0:00:02]} 53. Qb7+ {[%clk 0:00:10]}  Kg6 {[%clk 0:00:02]} 54. Qa6+ {[%clk 0:00:09]}  Kg5 {[%clk 0:00:01]} 55. c5 {[%clk 0:00:10]}  Rxf2 {[%clk 0:00:02]} 56. c6 {[%clk 0:00:10]}  Be5 {[%clk 0:00:01]} 57. Qa5 {[%clk 0:00:09]}  a2 {[%clk 0:00:01]} 58. Qxe5+ {[%clk 0:00:09]}  Kh4 {[%clk 0:00:02]} 59. c7 {[%clk 0:00:08]}  a5 {[%clk 0:00:02]} 60. c8=Q {[%clk 0:00:07]}  a4+ {[%clk 0:00:03]} 61. Ka3 {[%clk 0:00:08]}  a1=Q+ {[%clk 0:00:00]} 62. Qxa1 {[%clk 0:00:07]} 1-0


[Site "https://www.chess.com"]

[Event "Titled Tuesday Blitz August 22 Late 2023"]
[White "Ansh M Shah"]
[Black "Beerdsen, Thomas"]
[WhiteFideId "25033379"]
[BlackFideId "1030108"]
[WhiteElo "2533"]
[BlackElo "2794"]
[Result "0-1"]
[Round "2"]
[TimeControl "180+1"]
[Date "2023.08.22"]
[WhiteClock "0:00:46"]
[BlackClock "0:02:01"]
[Board "60"]

1. Nf3 {[%clk 0:03:00]}  g5 {[%clk 0:02:59]} 2. b3 {[%clk 0:03:00]}  g4 {[%clk 0:02:59]} 3. Ng1 {[%clk 0:03:00]}  Bg7 {[%clk 0:02:59]} 4. Nc3 {[%clk 0:03:01]}  d5 {[%clk 0:02:59]} 5. e3 {[%clk 0:03:01]}  c5 {[%clk 0:02:59]} 6. Bb2 {[%clk 0:03:01]}  d4 {[%clk 0:02:59]} 7. exd4 {[%clk 0:03:01]}  cxd4 {[%clk 0:03:00]} 8. Nce2 {[%clk 0:03:02]}  Nc6 {[%clk 0:03:00]} 9. h3 {[%clk 0:03:00]}  e5 {[%clk 0:02:59]} 10. hxg4 {[%clk 0:03:00]}  Bxg4 {[%clk 0:02:59]} 11. Nf3 {[%clk 0:02:57]}  e4 {[%clk 0:02:59]} 12. Nh2 {[%clk 0:02:55]}  Bh5 {[%clk 0:02:57]} 13. Qc1 {[%clk 0:02:48]}  Nf6 {[%clk 0:02:52]} 14. Nf4 {[%clk 0:02:43]}  Bg6 {[%clk 0:02:52]} 15. Bc4 {[%clk 0:02:40]}  Qd6 {[%clk 0:02:51]} 16. g3 {[%clk 0:02:34]}  O-O-O {[%clk 0:02:49]} 17. Nf1 {[%clk 0:02:30]}  Ng4 {[%clk 0:02:45]} 18. Ba3 {[%clk 0:02:22]}  Qf6 {[%clk 0:02:42]} 19. Nh2 {[%clk 0:02:19]}  h5 {[%clk 0:02:39]} 20. Qb2 {[%clk 0:01:35]}  Nxf2 {[%clk 0:02:14]} 21. Kxf2 {[%clk 0:01:33]}  h4 {[%clk 0:02:13]} 22. Ng4 {[%clk 0:01:03]}  Qg5 {[%clk 0:02:08]} 23. Be2 {[%clk 0:00:54]}  hxg3+ {[%clk 0:02:06]} 24. Kxg3 {[%clk 0:00:55]}  Be5 {[%clk 0:02:02]} 25. Rxh8 {[%clk 0:00:48]}  Qxf4+ {[%clk 0:02:00]} 26. Kg2 {[%clk 0:00:48]}  Qg3+ {[%clk 0:02:01]} 27. Kf1 {[%clk 0:00:49]}  Rxh8 {[%clk 0:02:01]} 28. Nxe5 {[%clk 0:00:46]}  Rh1# {[%clk 0:02:01]} 0-1


[Site "https://www.chess.com"]

[Event "Titled Tuesday Blitz August 22 Late 2023"]
[White "Adewumi, Tanitoluwa"]
[Black "ElDivis"]
[WhiteFideId "30966396"]
[WhiteElo "2760"]
[BlackElo "2532"]
[Result "1/2-1/2"]
[Round "2"]
[TimeControl "180+1"]
[Date "2023.08.22"]
[WhiteClock "0:00:02"]
[BlackClock "0:00:09"]
[Board "62"]

1. e4 {[%clk 0:02:58]}  c5 {[%clk 0:02:59]} 2. Nf3 {[%clk 0:02:57]}  d6 {[%clk 0:02:59]} 3. Bb5+ {[%clk 0:02:56]}  Bd7 {[%clk 0:02:59]} 4. Bxd7+ {[%clk 0:02:56]}  Nxd7 {[%clk 0:02:56]} 5. O-O {[%clk 0:02:55]}  Ngf6 {[%clk 0:02:55]} 6. Qe2 {[%clk 0:02:55]}  e6 {[%clk 0:02:51]} 7. d4 {[%clk 0:02:55]}  cxd4 {[%clk 0:02:51]} 8. Nxd4 {[%clk 0:02:56]}  Be7 {[%clk 0:02:51]} 9. c4 {[%clk 0:02:55]}  O-O {[%clk 0:02:51]} 10. b3 {[%clk 0:02:56]}  a6 {[%clk 0:02:50]} 11. Bb2 {[%clk 0:02:55]}  Re8 {[%clk 0:02:43]} 12. Nc3 {[%clk 0:02:54]}  Bf8 {[%clk 0:02:43]} 13. Qd2 {[%clk 0:02:40]}  Qc7 {[%clk 0:02:08]} 14. Rfe1 {[%clk 0:02:35]}  Rab8 {[%clk 0:02:03]} 15. g3 {[%clk 0:02:27]}  Ne5 {[%clk 0:01:55]} 16. Kg2 {[%clk 0:02:26]}  Nc6 {[%clk 0:01:43]} 17. Rac1 {[%clk 0:02:22]}  Nxd4 {[%clk 0:01:37]} 18. Qxd4 {[%clk 0:02:23]}  Qc6 {[%clk 0:01:38]} 19. f3 {[%clk 0:02:09]}  h5 {[%clk 0:01:35]} 20. h4 {[%clk 0:02:06]}  Qc5 {[%clk 0:01:24]} 21. Qd3 {[%clk 0:01:50]}  Nd7 {[%clk 0:01:09]} 22. Red1 {[%clk 0:01:34]}  Ne5 {[%clk 0:01:08]} 23. Qd2 {[%clk 0:01:32]}  Qa7 {[%clk 0:00:47]} 24. Ne2 {[%clk 0:01:28]}  b5 {[%clk 0:00:43]} 25. cxb5 {[%clk 0:01:28]}  axb5 {[%clk 0:00:43]} 26. Nf4 {[%clk 0:01:26]}  g6 {[%clk 0:00:38]} 27. Bd4 {[%clk 0:01:03]}  Qa6 {[%clk 0:00:34]} 28. Nd3 {[%clk 0:00:59]}  Nxd3 {[%clk 0:00:33]} 29. Qxd3 {[%clk 0:01:00]}  Qxa2+ {[%clk 0:00:33]} 30. Rc2 {[%clk 0:00:58]}  Qa6 {[%clk 0:00:33]} 31. Bb2 {[%clk 0:00:53]}  Qb7 {[%clk 0:00:29]} 32. Qc3 {[%clk 0:00:48]}  e5 {[%clk 0:00:29]} 33. Rcd2 {[%clk 0:00:48]}  b4 {[%clk 0:00:27]} 34. Qe3 {[%clk 0:00:46]}  Rbc8 {[%clk 0:00:24]} 35. Rd5 {[%clk 0:00:42]}  Rc2+ {[%clk 0:00:22]} 36. R1d2 {[%clk 0:00:42]}  Rec8 {[%clk 0:00:22]} 37. f4 {[%clk 0:00:38]}  Rxd2+ {[%clk 0:00:14]} 38. Qxd2 {[%clk 0:00:38]}  exf4 {[%clk 0:00:05]} 39. Qd4 {[%clk 0:00:25]}  Rc2+ {[%clk 0:00:05]} 40. Kf3 {[%clk 0:00:26]}  Rxb2 {[%clk 0:00:05]} 41. Qxb2 {[%clk 0:00:26]}  fxg3 {[%clk 0:00:05]} 42. Kxg3 {[%clk 0:00:26]}  Qd7 {[%clk 0:00:05]} 43. Qe2 {[%clk 0:00:24]}  Bg7 {[%clk 0:00:05]} 44. Qd1 {[%clk 0:00:22]}  Qe6 {[%clk 0:00:04]} 45. Qf3 {[%clk 0:00:21]}  Be5+ {[%clk 0:00:04]} 46. Kg2 {[%clk 0:00:22]}  Qe7 {[%clk 0:00:04]} 47. Kh3 {[%clk 0:00:21]}  Qe6+ {[%clk 0:00:04]} 48. Kg2 {[%clk 0:00:22]}  Qe7 {[%clk 0:00:04]} 49. Qh3 {[%clk 0:00:19]}  Qc7 {[%clk 0:00:03]} 50. Rd2 {[%clk 0:00:18]}  Qc5 {[%clk 0:00:02]} 51. Rf2 {[%clk 0:00:18]}  Qc6 {[%clk 0:00:02]} 52. Qf3 {[%clk 0:00:18]}  Qb7 {[%clk 0:00:03]} 53. Rd2 {[%clk 0:00:18]}  Qe7 {[%clk 0:00:03]} 54. Rf2 {[%clk 0:00:16]}  Kg7 {[%clk 0:00:03]} 55. Kh3 {[%clk 0:00:14]}  Qe6+ {[%clk 0:00:04]} 56. Kg2 {[%clk 0:00:14]}  Qe7 {[%clk 0:00:04]} 57. Qh3 {[%clk 0:00:14]}  Qb7 {[%clk 0:00:04]} 58. Re2 {[%clk 0:00:10]}  Qe7 {[%clk 0:00:04]} 59. Kf1 {[%clk 0:00:09]}  Qf6+ {[%clk 0:00:05]} 60. Ke1 {[%clk 0:00:07]}  Qe7 {[%clk 0:00:06]} 61. Kd1 {[%clk 0:00:07]}  Qc7 {[%clk 0:00:06]} 62. Qf3 {[%clk 0:00:05]}  Qe7 {[%clk 0:00:06]} 63. Rf2 {[%clk 0:00:05]}  Qa7 {[%clk 0:00:07]} 64. Ke2 {[%clk 0:00:03]}  Qa2+ {[%clk 0:00:07]} 65. Kf1 {[%clk 0:00:04]}  Qa7 {[%clk 0:00:08]} 66. Qd3 {[%clk 0:00:02]}  Qe7 {[%clk 0:00:08]} 67. Qf3 {[%clk 0:00:01]}  Qd7 {[%clk 0:00:08]} 68. Kg2 {[%clk 0:00:02]}  Qe7 {[%clk 0:00:09]} 1/2-1/2


[Site "https://www.chess.com"]

[Event "Titled Tuesday Blitz August 22 Late 2023"]
[White "Ballester Llagaria, Luis Eduardo"]
[Black "Ghazarian, Kirk"]
[WhiteFideId "2297620"]
[BlackFideId "30908604"]
[WhiteElo "2529"]
[BlackElo "2751"]
[Result "1-0"]
[Round "2"]
[TimeControl "180+1"]
[Date "2023.08.22"]
[WhiteClock "0:00:14"]
[BlackClock "0:00:03"]
[Board "64"]

1. e4 {[%clk 0:02:59]}  c5 {[%clk 0:03:00]} 2. Nc3 {[%clk 0:02:59]}  a6 {[%clk 0:02:57]} 3. Nf3 {[%clk 0:02:58]}  Nc6 {[%clk 0:02:56]} 4. d4 {[%clk 0:02:58]}  cxd4 {[%clk 0:02:57]} 5. Nxd4 {[%clk 0:02:59]}  e5 {[%clk 0:02:55]} 6. Nf5 {[%clk 0:02:53]}  d6 {[%clk 0:02:55]} 7. Bc4 {[%clk 0:02:50]}  Bxf5 {[%clk 0:02:50]} 8. exf5 {[%clk 0:02:51]}  Nf6 {[%clk 0:02:51]} 9. g4 {[%clk 0:02:41]}  Be7 {[%clk 0:02:47]} 10. g5 {[%clk 0:02:36]}  Nd7 {[%clk 0:02:47]} 11. Qh5 {[%clk 0:02:28]}  g6 {[%clk 0:02:36]} 12. Qg4 {[%clk 0:01:59]}  Nd4 {[%clk 0:02:26]} 13. f6 {[%clk 0:01:14]}  Bf8 {[%clk 0:02:00]} 14. O-O {[%clk 0:01:09]}  Nb6 {[%clk 0:01:55]} 15. Bb3 {[%clk 0:01:03]}  Qc8 {[%clk 0:01:43]} 16. Qxc8+ {[%clk 0:00:50]}  Rxc8 {[%clk 0:01:44]} 17. f4 {[%clk 0:00:50]}  Nc4 {[%clk 0:01:15]} 18. Nd5 {[%clk 0:00:45]}  b5 {[%clk 0:01:06]} 19. c3 {[%clk 0:00:43]}  Ne6 {[%clk 0:00:57]} 20. a4 {[%clk 0:00:40]}  Nc5 {[%clk 0:00:44]} 21. Bxc4 {[%clk 0:00:37]}  bxc4 {[%clk 0:00:45]} 22. Nb6 {[%clk 0:00:38]}  Rc6 {[%clk 0:00:38]} 23. Nxc4 {[%clk 0:00:38]}  Nb3 {[%clk 0:00:38]} 24. Ra3 {[%clk 0:00:30]}  Nxc1 {[%clk 0:00:38]} 25. Na5 {[%clk 0:00:31]}  Rc5 {[%clk 0:00:27]} 26. b4 {[%clk 0:00:20]}  Rxc3 {[%clk 0:00:24]} 27. Rxc3 {[%clk 0:00:19]}  Ne2+ {[%clk 0:00:24]} 28. Kf2 {[%clk 0:00:20]}  Nxc3 {[%clk 0:00:25]} 29. Rc1 {[%clk 0:00:20]}  Nxa4 {[%clk 0:00:20]} 30. Rc8+ {[%clk 0:00:16]}  Kd7 {[%clk 0:00:20]} 31. Ra8 {[%clk 0:00:17]}  d5 {[%clk 0:00:15]} 32. Ra7+ {[%clk 0:00:15]}  Ke6 {[%clk 0:00:14]} 33. Nc6 {[%clk 0:00:15]}  exf4 {[%clk 0:00:07]} 34. Nd8+ {[%clk 0:00:15]}  Kf5 {[%clk 0:00:06]} 35. Nxf7 {[%clk 0:00:15]}  Rg8 {[%clk 0:00:06]} 36. Rxa6 {[%clk 0:00:13]}  Bxb4 {[%clk 0:00:06]} 37. Rxa4 {[%clk 0:00:13]}  Bc5+ {[%clk 0:00:06]} 38. Kf3 {[%clk 0:00:13]}  Be3 {[%clk 0:00:03]} 39. Nh6+ {[%clk 0:00:14]} 1-0


[Site "https://www.chess.com"]

[Event "Titled Tuesday Blitz August 22 Late 2023"]
[White "Makridis, Dimitrios"]
[Black "Sanhueza, Cristian"]
[WhiteFideId "25864475"]
[BlackFideId "116815"]
[WhiteElo "2722"]
[BlackElo "2461"]
[Result "0-1"]
[Round "2"]
[TimeControl "180+1"]
[Date "2023.08.22"]
[WhiteClock "0:01:04"]
[BlackClock "0:02:42"]
[Board "73"]

1. e4 {[%clk 0:03:00]}  e5 {[%clk 0:03:00]} 2. Nf3 {[%clk 0:03:00]}  Nc6 {[%clk 0:03:00]} 3. Bc4 {[%clk 0:03:00]}  Bc5 {[%clk 0:03:00]} 4. d3 {[%clk 0:03:01]}  Nf6 {[%clk 0:03:01]} 5. O-O {[%clk 0:03:01]}  O-O {[%clk 0:03:01]} 6. Nbd2 {[%clk 0:03:00]}  a5 {[%clk 0:03:01]} 7. c3 {[%clk 0:02:58]}  d6 {[%clk 0:03:01]} 8. h3 {[%clk 0:02:54]}  Ba7 {[%clk 0:03:01]} 9. Re1 {[%clk 0:02:54]}  Ne7 {[%clk 0:03:01]} 10. Nf1 {[%clk 0:02:53]}  Ng6 {[%clk 0:03:02]} 11. Ng3 {[%clk 0:02:54]}  Re8 {[%clk 0:03:03]} 12. d4 {[%clk 0:02:52]}  c6 {[%clk 0:03:00]} 13. Nf5 {[%clk 0:02:51]}  d5 {[%clk 0:02:52]} 14. dxe5 {[%clk 0:02:49]}  Nxe5 {[%clk 0:02:51]} 15. Nxe5 {[%clk 0:02:48]}  Rxe5 {[%clk 0:02:52]} 16. Bf4 {[%clk 0:02:14]}  Re8 {[%clk 0:02:51]} 17. Bb3 {[%clk 0:01:50]}  Nxe4 {[%clk 0:02:52]} 18. Qg4 {[%clk 0:01:42]}  Qf6 {[%clk 0:02:50]} 19. Nh6+ {[%clk 0:01:31]}  Qxh6 {[%clk 0:02:50]} 20. Bxh6 {[%clk 0:01:10]}  Bxg4 {[%clk 0:02:49]} 21. hxg4 {[%clk 0:01:10]}  Bxf2+ {[%clk 0:02:47]} 22. Kh2 {[%clk 0:01:10]}  Bxe1 {[%clk 0:02:44]} 23. Bf4 {[%clk 0:01:04]}  Bh4 {[%clk 0:02:42]} 0-1


[Site "https://www.chess.com"]